bitfinex/quotes_ETHUSD_20230403
["timestamp","ask_amount","ask_price","bid_price","bid_amount"]
[1680511205503,6.15583816,1811.6,1811.5,0.1]
[1680511205709,0.002,1811.6,1811.5,7.38201]
[1680511206011,6.85256549,1812.4,1811.7,1.0]
[1680511206306,1.63440102,1812.4,1811.9,1.93165]
[1680511206473,0.55122807,1812.6,1812.0,0.193165]
[1680511206673,0.54522807,1812.6,1812.1,0.82773]
[1680511206889,0.24693458,1812.7,1812.1,0.82773]
[1680511207062,0.31260041,1812.5,1812.1,0.82773]
[1680511207412,0.31260041,1812.5,1812.1,0.27591]
[1680511207568,0.31260041,1812.5,1812.0,0.469085]
[1680511207904,0.31260041,1812.5,1812.0,1.020955]
[1680511210660,0.31260041,1812.5,1812.0,0.469085]
[1680511210900,0.31260041,1812.5,1812.0,0.28192]
[1680511211060,0.31260041,1812.5,1812.0,0.82779]
[1680511211967,3.10036769,1812.5,1812.0,0.82779]
[1680511212991,2.78776728,1812.4,1812.0,0.82779]
[1680511214212,0.38859091,1812.3,1812.0,0.82779]
[1680511215023,2.78776728,1812.4,1812.0,0.82779]
[1680511215230,2.78776728,1812.4,1812.0,1.022145]
[1680511215991,2.78776728,1812.4,1812.0,0.82779]
[1680511217309,3.02254415,1812.3,1811.9,0.27594]
[1680511219019,8.58776728,1812.2,1811.8,0.008]
[1680511219229,8.81976728,1812.2,1811.8,0.27595]
[1680511219535,9.98079842,1812.2,1811.8,0.82788]
[1680511220437,9.98079842,1812.2,1811.7,0.28797]
[1680511220738,9.98079842,1812.2,1811.7,0.83393]
[1680511220900,8.8,1812.1,1811.7,0.83393]
[1680511221096,0.002,1812.1,1811.7,0.918123]
[1680511221312,9.8291,1812.5,1812.0,1.93154]
[1680511221533,3.0,1812.4,1812.0,1.93154]
[1680511221804,3.008,1812.5,1812.0,1.93154]
[1680511221997,3.006,1812.5,1812.0,1.93154]
[1680511222203,3.006,1812.5,1812.0,2.125294]
[1680511222615,3.006,1812.5,1812.0,3.340294]
[1680511223017,0.38967078,1812.4,1812.0,3.340294]
[1680511223201,0.38967078,1812.4,1812.0,2.236554]
[1680511223402,0.38967078,1812.4,1812.0,3.340304]
[1680511223650,0.38967078,1812.4,1812.1,0.3340304]
[1680511223829,0.38967078,1812.4,1812.2,0.82771]
[1680511224030,16.09053433,1812.7,1812.2,0.82771]
[1680511224232,16.10707848,1812.7,1812.2,0.82771]
[1680511224752,3.01776728,1812.6,1812.2,0.82771]
[1680511224903,3.01776728,1812.6,1812.2,0.94388404]
[1680511225120,3.01776728,1812.6,1812.2,0.82771]
[1680511225559,0.82987848,1812.7,1812.2,0.82771]
[1680511225730,3.60964576,1812.7,1812.2,0.82771]
[1680511226218,3.0,1812.6,1812.2,0.82771]
[1680511227054,3.0,1812.6,1812.2,0.2759]
[1680511227257,3.0,1812.6,1812.2,0.50244204]
[1680511228272,3.0,1812.6,1812.2,1.05425204]
[1680511228449,3.002,1812.6,1812.2,1.05507666]
[1680511228656,3.006,1812.6,1812.2,1.05107666]
[1680511228962,5.79376728,1812.6,1812.2,0.49926666]
[1680511229149,7.03527744,1812.6,1812.2,0.27272462]
[1680511230926,9.79876728,1812.5,1811.9,0.002]
[1680511231126,0.23,1812.4,1812.1,0.27592]
[1680511231354,2.78776728,1812.3,1812.1,0.27592]
[1680511231556,2.78776728,1812.3,1811.9,0.5519]
[1680511231764,0.008,1812.4,1812.1,0.82776]
[1680511232063,5.78776728,1812.4,1812.1,0.82776]
[1680511232360,0.008,1812.4,1812.1,0.82776]
[1680511232524,5.50183433,1812.7,1812.3,0.82764]
[1680511232724,3.0,1812.6,1812.3,0.82764]
[1680511232972,0.006,1812.6,1812.3,0.82764]
[1680511233130,0.25293458,1812.7,1812.3,0.82764]
[1680511233325,3.24693458,1812.7,1812.5,0.82758]
[1680511233531,0.25293458,1812.7,1812.5,0.82758]
[1680511233790,0.24693458,1812.7,1812.5,0.82758]
[1680511235927,2.78776728,1812.6,1812.3,0.002]
[1680511236129,2.78776728,1812.6,1812.1,15.0306]
[1680511236130,0.02254415,1812.5,1812.1,15.0306]
[1680511236328,0.30357529,1812.5,1812.1,15.30652]
[1680511236683,0.30357529,1812.5,1812.1,0.27792]
[1680511236847,0.30357529,1812.5,1812.1,0.27592]
[1680511237729,0.30357529,1812.5,1812.1,0.82776]
[1680511239873,0.02254415,1812.5,1812.1,0.82776]
[1680511240784,0.25093458,1812.7,1812.1,0.82776]
[1680511240991,0.25093458,1812.7,1812.2,0.006]
[1680511240992,0.24693458,1812.7,1812.2,0.006]
[1680511241136,0.25293458,1812.7,1812.3,1.9312]
[1680511241779,0.24693458,1812.7,1812.3,1.9312]
[1680511241979,0.24693458,1812.7,1812.3,11.981]
[1680511242283,0.24693458,1812.7,1812.3,11.983]
[1680511245951,0.24693458,1812.7,1812.3,11.989]
[1680511246196,0.24693458,1812.7,1812.5,1.93102]
[1680511248933,0.24693458,1812.7,1812.5,3.14502]
[1680511249275,0.24396988,1812.7,1812.5,3.14502]
[1680511250918,0.24396988,1812.7,1812.5,3.15702]
[1680511252211,0.24396988,1812.7,1812.5,1.94302]
[1680511252415,0.24396988,1812.7,1812.6,1.021832]
[1680511253071,0.24396988,1812.7,1812.6,6.821832]
[1680511253306,0.24396988,1812.7,1812.6,6.829832]
[1680511254523,0.24396988,1812.7,1812.6,10.82659928]
[1680511255721,0.10703531,1812.7,1812.6,10.82659928]
[1680511255925,0.10703531,1812.7,1812.6,13.82659928]
[1680511256087,0.10703531,1812.7,1812.6,10.82659928]
[1680511258175,0.10703531,1812.7,1812.6,13.82659928]
[1680511261704,0.10703531,1812.7,1812.6,0.484142]
[1680511261907,0.10703531,1812.7,1812.6,0.28184]
[1680511262215,0.10703531,1812.7,1812.6,0.27584]
[1680511262379,0.10703531,1812.7,1812.6,0.28184]
[1680511263053,0.10703531,1812.7,1812.6,0.27584]
[1680511263384,0.10703531,1812.7,1812.5,0.014]
[1680511263738,0.10378578,1812.7,1812.5,0.28185]
[1680511263887,0.10378578,1812.7,1812.5,0.006]
[1680511264522,0.10378578,1812.7,1812.4,12.20936]
[1680511264732,0.10378578,1812.7,1812.4,14.601408]
[1680511265429,0.10378578,1812.7,1812.4,8.525548]
[1680511265747,0.10378578,1812.7,1812.4,0.002]
[1680511265748,0.29686578,1812.7,1812.4,0.002]
[1680511265902,0.29686578,1812.7,1812.3,10.0518]
[1680511266449,3.08463306,1812.7,1812.3,0.002]
[1680511266730,3.08463306,1812.7,1812.1,15.07331]
[1680511266888,0.30846331,1812.6,1812.1,15.07331]
[1680511267390,0.10378578,1812.7,1812.1,15.61915]
[1680511267707,0.10378578,1812.7,1812.1,21.41915]
[1680511269033,0.10378578,1812.7,1812.1,15.06731]
[1680511269034,0.29686578,1812.7,1812.1,15.06731]
[1680511269202,0.31940993,1812.7,1812.1,15.06731]
[1680511269545,0.12632993,1812.7,1812.1,15.06731]
[1680511269835,1.11205692,1812.7,1812.1,15.06731]
[1680511269987,5.6900642,1812.7,1812.1,0.008]
[1680511270184,3.01776728,1812.6,1812.1,0.006]
[1680511270390,3.21085728,1812.6,1812.0,0.28192]
[1680511270691,0.32108573,1812.5,1812.1,0.006]
[1680511270999,0.51418573,1812.5,1812.0,0.006]
[1680511271193,4.91369716,1812.5,1812.0,0.006]
[1680511271411,10.71369716,1812.5,1812.0,0.006]
[1680511271632,10.71569716,1812.5,1811.9,9.8603]
[1680511271839,1.07156972,1812.4,1811.9,10.13624]
[1680511272007,0.02254415,1812.3,1811.9,0.002]
[1680511272205,0.02254415,1812.3,1811.8,0.27596]
[1680511272206,0.21566415,1812.3,1811.8,0.27596]
[1680511272446,3.00343143,1812.3,1811.8,0.006]
[1680511272641,3.00343143,1812.3,1811.7,10.40258]
[1680511272943,4.63868555,1812.3,1811.7,10.40258]
[1680511273344,4.44556555,1812.3,1811.7,10.40258]
[1680511273521,4.44556555,1812.3,1811.7,10.95454]
[1680511273713,0.02254415,1812.3,1811.7,10.95454]
[1680511274013,3.02254415,1812.3,1811.7,10.94854]
[1680511274433,3.02254415,1812.3,1811.7,12.15254]
[1680511274644,3.02254415,1812.3,1811.8,0.006]
[1680511274834,3.02254415,1812.3,1811.9,0.82783]
[1680511275458,3.81242857,1812.3,1811.9,0.82783]
[1680511275636,3.02254415,1812.3,1811.9,0.82783]
[1680511278052,3.02254415,1812.3,1811.9,0.27594]
[1680511278555,3.21567415,1812.3,1811.8,0.002]
[1680511278734,3.02254415,1812.3,1811.8,0.27596]
[1680511279262,3.02254415,1812.3,1811.7,10.67856]
[1680511279263,3.21566415,1812.3,1811.7,10.67856]
[1680511279474,1.215,1812.1,1811.7,0.002]
[1680511279663,1.215,1812.1,1811.6,0.27599]
[1680511279664,4.00276728,1812.1,1811.6,0.27599]
[1680511280172,4.19590728,1812.1,1811.5,10.15289]
[1680511280391,6.19255165,1812.1,1811.5,12.369391]
[1680511280665,6.00141165,1812.1,1811.5,12.369391]
[1680511280824,4.78641165,1812.1,1811.5,12.927411]
[1680511281022,4.78441165,1812.1,1811.7,0.27597]
[1680511281767,3.0,1812.0,1811.7,0.27597]
[1680511282067,3.0,1812.0,1811.7,0.82793]
[1680511282276,5.00464437,1812.1,1811.7,0.82793]
[1680511282425,0.008,1812.1,1811.7,0.911323]
[1680511282626,9.57626642,1812.2,1811.7,0.911323]
[1680511282627,9.2567,1812.2,1811.7,0.911323]
[1680511282840,9.2627,1812.2,1811.7,0.917323]
[1680511283059,0.008,1812.2,1811.7,0.917323]
[1680511283259,3.0,1812.3,1811.9,0.27594]
[1680511283468,5.79376728,1812.3,1811.9,0.27594]
[1680511283775,5.79576728,1812.3,1811.9,0.82784]
[1680511284787,5.81831143,1812.3,1811.9,0.82784]
[1680511285333,3.03054415,1812.3,1811.9,0.82784]
[1680511285536,7.50647585,1812.3,1811.8,0.27595]
[1680511285883,4.50847585,1812.3,1811.8,0.82788]
[1680511286078,4.50647585,1812.3,1811.8,0.82788]
[1680511286394,2.78776728,1812.2,1811.7,0.014]
[1680511286678,1.22554415,1812.1,1811.7,0.27597]
[1680511286876,4.29208816,1812.1,1811.7,0.27597]
[1680511288585,4.28975607,1812.1,1811.7,0.27597]
[1680511288740,4.28975607,1812.1,1811.7,0.82793]
[1680511288940,4.01097934,1812.1,1811.7,0.82793]
[1680511289699,1.22321206,1812.1,1811.7,0.82793]
[1680511289996,4.22321206,1812.1,1811.7,0.82793]
[1680511290355,4.01097934,1812.1,1811.7,0.27598]
[1680511290555,5.01097934,1812.1,1811.7,0.359977]
[1680511290751,3.0,1812.0,1811.7,0.083997]
[1680511290949,3.0,1812.0,1811.6,0.28198]
[1680511291381,3.0,1812.0,1811.6,0.006]
[1680511291568,3.0,1812.0,1811.6,0.28199]
[1680511291982,3.0,1812.0,1811.6,0.82798]
[1680511292879,3.0,1812.0,1811.6,0.83398]
[1680511293088,0.02454415,1812.1,1811.7,0.083398]
[1680511293399,0.02254415,1812.1,1811.8,0.82789]
[1680511294002,7.5881,1812.3,1811.8,0.82789]
[1680511294298,10.37586728,1812.3,1811.8,0.82789]
[1680511294660,3.002,1812.3,1811.8,0.82789]
[1680511294848,3.0,1812.3,1811.9,0.082789]
[1680511295054,3.0,1812.3,1812.0,0.8278]
[1680511295304,9.0108,1812.4,1812.0,0.8278]
[1680511295599,11.79256728,1812.4,1812.0,0.8278]
[1680511295747,0.002,1812.4,1812.0,0.8278]
[1680511295953,10.552,1812.5,1812.1,0.08278]
[1680511296157,13.33976728,1812.5,1812.2,0.2759]
[1680511297003,13.33976728,1812.5,1812.1,0.27591]
[1680511297516,0.02254415,1812.4,1812.1,0.27591]
[1680511297930,0.02254415,1812.4,1812.0,0.006]
[1680511297931,2.78776728,1812.3,1812.0,0.006]
[1680511298092,4.09289842,1812.3,1811.8,0.55793]
[1680511298292,4.09289842,1812.3,1811.9,0.27594]
[1680511298489,4.09289842,1812.3,1811.8,0.28195]
[1680511298688,4.09289842,1812.3,1811.8,0.27995]
[1680511298895,4.09289842,1812.3,1811.8,0.27595]
[1680511299092,0.40928984,1812.2,1811.8,0.27595]
[1680511299703,0.02454415,1812.3,1811.8,0.82788]
[1680511299893,0.02254415,1812.3,1811.8,0.82788]
[1680511303051,0.02254415,1812.3,1811.8,6.62788]
[1680511303333,3.0,1812.4,1812.0,1.93151]
[1680511303536,3.008,1812.5,1812.2,0.8277]
[1680511303707,0.002,1812.6,1812.2,0.8277]
[1680511303912,6.06580439,1812.7,1812.2,0.8277]
[1680511304110,3.05357167,1812.7,1812.2,0.8277]
[1680511304321,3.05157167,1812.7,1812.2,0.8277]
[1680511304655,3.05157167,1812.7,1812.2,1.4978901]
[1680511306320,3.05157167,1812.7,1812.2,0.9460901]
[1680511306510,0.26380439,1812.7,1812.2,1.4979001]
[1680511306714,3.26380439,1812.7,1812.2,1.4979001]
[1680511306913,0.26380439,1812.7,1812.2,1.4979001]
[1680511309252,0.26380439,1812.7,1812.3,0.14979001]
[1680511309460,0.26380439,1812.7,1812.4,0.82762]
[1680511310356,0.26380439,1812.7,1812.4,0.82523264]
[1680511310744,0.24126024,1812.7,1812.4,0.82523264]
[1680511313471,0.23745995,1812.7,1812.4,0.82523264]
[1680511313768,0.23745995,1812.7,1812.5,0.08252326]
[1680511313969,0.23745995,1812.7,1812.6,0.27584]
[1680511315344,0.23745995,1812.7,1812.5,0.91006326]
[1680511316569,0.23745995,1812.7,1812.5,0.35836326]
[1680511318742,0.23745995,1812.7,1812.5,0.91008326]
[1680511318934,0.23745995,1812.7,1812.6,0.09100833]
[1680511319477,0.09998549,1812.7,1812.6,0.09100833]
[1680511319677,0.09998549,1812.7,1812.6,0.36684833]
[1680511319881,0.09998549,1812.7,1812.6,0.27584]
[1680511321082,0.09998549,1812.7,1812.6,0.83353]
[1680511321582,0.09998549,1812.7,1812.6,0.82753]
[1680511323843,0.09998549,1812.7,1812.6,0.83353]
[1680511326452,0.09998549,1812.7,1812.6,6.63353]
[1680511326648,0.09998549,1812.7,1812.6,7.53797533]
[1680511328051,0.09998549,1812.7,1812.6,7.54397533]
[1680511328250,0.09998549,1812.7,1812.6,7.53797533]
[1680511328990,0.09998549,1812.7,1812.6,10.32574261]
[1680511329813,0.09998549,1812.7,1812.6,11.53774261]
[1680511330358,0.09998549,1812.7,1812.6,11.53174261]
[1680511330784,0.09998549,1812.7,1812.6,11.53574261]
[1680511331000,0.09998549,1812.7,1812.6,11.53774261]
[1680511331493,0.09998549,1812.7,1812.6,1.73797533]
[1680511331721,0.09998549,1812.7,1812.6,0.82753]
[1680511335521,0.09998549,1812.7,1812.4,0.008]
[1680511335795,0.09998549,1812.7,1812.2,0.28189]
[1680511335796,1.215,1812.6,1812.2,0.28189]
[1680511335998,1.23754415,1812.6,1812.1,0.83374]
[1680511336197,0.1215,1812.5,1812.1,0.006]
[1680511336493,0.1215,1812.5,1812.1,0.27591]
[1680511336996,0.1215,1812.5,1812.0,0.008]
[1680511337199,0.1215,1812.5,1811.8,15.68503]
[1680511337200,0.02254415,1812.4,1811.8,15.68503]
[1680511337370,4.21442143,1812.4,1811.8,11.03817]
[1680511337693,4.02131143,1812.4,1811.8,0.83588]
[1680511337908,4.02131143,1812.4,1811.8,11.03018]
[1680511337909,3.0,1812.3,1811.8,11.03018]
[1680511338105,2.99729482,1812.3,1811.8,11.03818]
[1680511338671,2.99729482,1812.3,1811.8,12.832389]
[1680511338865,1.23554415,1812.4,1811.8,12.832389]
[1680511339066,1.23354415,1812.4,1811.8,12.832389]
[1680511339403,0.02254415,1812.4,1811.9,0.006]
[1680511339698,14.5589,1812.5,1812.0,0.82779]
[1680511339916,6.39279,1812.5,1812.0,0.82779]
[1680511340113,4.8152,1812.5,1812.0,0.82779]
[1680511340318,4.8132,1812.5,1812.0,0.82779]
[1680511341359,4.8132,1812.5,1812.0,0.83379]
[1680511341600,4.219,1812.6,1812.0,6.63379]
[1680511341803,4.79878549,1812.7,1812.1,0.006]
[1680511342017,4.79478549,1812.7,1812.2,7.73128]
[1680511342313,4.79478549,1812.7,1812.2,7.74528]
[1680511342619,0.09998549,1812.7,1812.2,7.74528]
[1680511342788,0.09998549,1812.7,1812.2,22.16648]
[1680511342996,0.09998549,1812.7,1812.3,2.216648]
[1680511343199,0.09998549,1812.7,1812.4,0.82761]
[1680511344385,0.09998549,1812.7,1812.3,0.006]
[1680511344723,1.215,1812.6,1812.3,0.27589]
[1680511344895,1.215,1812.6,1812.3,0.28189]
[1680511345776,1.22554415,1812.5,1812.2,0.008]
[1680511345979,1.22554415,1812.5,1812.1,0.28191]
[1680511346612,1.22554415,1812.5,1812.1,0.27591]
[1680511347721,1.22554415,1812.5,1812.0,0.28392]
[1680511348031,1.22554415,1812.5,1812.0,0.27592]
[1680511348214,1.22554415,1812.5,1812.0,1.13338671]
[1680511348413,1.22554415,1812.5,1812.0,6.93338671]
[1680511348719,1.22554415,1812.5,1812.0,6.94138671]
[1680511349226,4.01331143,1812.5,1812.0,0.28392]
[1680511349429,4.01331143,1812.5,1812.0,0.27592]
[1680511349633,7.015,1812.3,1811.9,0.008]
[1680511349794,1.215,1812.1,1811.7,0.006]
[1680511349993,0.1215,1812.0,1811.6,0.006]
[1680511350304,3.31466,1812.0,1811.6,0.006]
[1680511351025,5.90926728,1812.0,1811.5,0.106]
[1680511351232,5.91126728,1812.0,1811.5,0.38199]
[1680511351431,5.91126728,1812.0,1811.5,0.93401]
[1680511351587,3.1235,1812.0,1811.5,0.93401]
[1680511351930,3.1215,1812.0,1811.5,1.699818]
[1680511352297,3.0,1812.0,1811.5,7.499818]
[1680511352545,5.7956,1812.1,1811.5,7.501818]
[1680511353182,5.7956,1812.1,1811.5,7.507818]
[1680511353300,5.7956,1812.1,1811.5,7.501818]
[1680511355035,0.002,1812.1,1811.7,5.8]
[1680511355236,1.205,1812.4,1811.8,7.20789]
[1680511355436,1.22754415,1812.4,1811.8,0.86396]
[1680511355597,1.205,1812.4,1811.8,7.21389]
[1680511355799,5.9497,1812.6,1811.9,0.006]
[1680511356136,8.73746728,1812.6,1812.1,0.82776]
[1680511358741,5.9497,1812.6,1812.1,0.82776]
[1680511361224,5.9497,1812.6,1812.1,3.58698]
[1680511361408,0.002,1812.6,1812.1,9.39898]
[1680511361608,3.23795186,1812.7,1812.2,6.739898]
[1680511361858,0.23795186,1812.7,1812.3,1.93117]
[1680511362266,0.234264,1812.7,1812.3,1.93117]
[1680511362460,0.234264,1812.7,1812.3,1.93717]
[1680511362805,0.234264,1812.7,1812.4,2.79376728]
[1680511363012,0.09629763,1812.7,1812.5,9.22439673]
[1680511363229,0.09629763,1812.7,1812.6,8.58776728]
[1680511363559,0.09629763,1812.7,1812.6,6.63553]
[1680511364617,0.09629763,1812.7,1812.6,5.505546]
[1680511364812,0.09629763,1812.7,1812.6,5.787386]
[1680511365028,0.09629763,1812.7,1812.6,3.22346027]
[1680511365233,0.09629763,1812.7,1812.6,1.71730027]
[1680511365465,0.09629763,1812.7,1812.6,2.26899027]
[1680511366464,0.09410534,1812.7,1812.6,2.26899027]
[1680511367948,0.09410534,1812.7,1812.6,8.06899027]
[1680511368192,0.09410534,1812.7,1812.6,2.27099027]
[1680511368367,0.09410534,1812.7,1812.6,0.82753]
[1680511376956,0.09410534,1812.7,1812.6,0.27584]
[1680511379800,0.11664949,1812.7,1812.5,0.002]
[1680511380102,0.11664949,1812.7,1812.4,0.006]
[1680511380103,1.203,1812.6,1812.2,0.2759]
[1680511380392,1.211,1812.4,1812.2,0.2759]
[1680511380812,1.211,1812.4,1812.0,14.2138]
[1680511380951,1.211,1812.4,1812.0,0.27793]
[1680511381291,1.23354415,1812.4,1812.0,0.27593]
[1680511381493,0.02254415,1812.4,1812.0,6.6278]
[1680511381693,0.02254415,1812.4,1812.0,6.6298]
[1680511382549,0.02254415,1812.4,1812.0,7.403756]
[1680511386379,0.02254415,1812.4,1812.0,6.6298]
[1680511387600,0.02254415,1812.4,1812.0,0.002]
[1680511387760,0.02254415,1812.4,1812.0,0.27593]
[1680511389056,0.01874706,1812.4,1812.0,0.27593]
[1680511389764,0.01874706,1812.4,1811.9,0.82783]
[1680511389964,0.53463177,1812.4,1811.9,0.82783]
[1680511391278,0.72774177,1812.4,1811.8,15.82158]
[1680511391473,1.211,1812.2,1811.8,0.28395]
[1680511391775,0.01874706,1812.1,1811.7,0.55796]
[1680511391939,0.42049849,1812.1,1811.8,0.27596]
[1680511392145,0.42049849,1812.1,1811.8,0.82789]
[1680511392470,0.01874706,1812.1,1811.8,0.82789]
[1680511392639,1.211,1812.2,1811.8,0.82789]
[1680511392970,5.8796,1812.3,1811.8,0.82789]
[1680511393141,8.68611434,1812.3,1811.8,0.82789]
[1680511393636,5.89834706,1812.3,1811.8,0.82789]
[1680511393973,0.58983471,1812.2,1811.8,0.82789]
[1680511394830,0.58983471,1812.2,1811.8,0.27596]
[1680511395362,0.58983471,1812.2,1811.8,0.28196]
[1680511396337,0.58983471,1812.2,1811.8,1.93776]
[1680511396748,0.58983471,1812.2,1811.8,0.83389]
[1680511397137,0.58983471,1812.2,1811.8,0.28196]
[1680511397562,0.58983471,1812.2,1811.8,0.27596]
[1680511398301,1.27398347,1812.1,1811.7,0.008]
[1680511398467,1.27398347,1812.1,1811.7,0.28197]
[1680511398961,1.27398347,1812.1,1811.7,0.006]
[1680511399468,1.27398347,1812.1,1811.7,0.28198]
[1680511399974,1.27398347,1812.1,1811.7,0.83394]
[1680511400474,9.93016563,1812.0,1811.6,0.008]
[1680511400642,1.215,1811.8,1811.5,0.1]
[1680511400828,4.19594728,1811.8,1811.5,0.1]
[1680511401025,0.41959473,1811.7,1811.5,0.1]
[1680511401729,1.217,1811.8,1811.5,0.1]
[1680511401943,0.002,1812.0,1811.5,10.72979728]
[1680511402155,1.215,1812.5,1811.6,10.8045]
[1680511402334,1.41035764,1812.7,1811.8,7.73169]
[1680511402335,1.221,1812.6,1811.8,7.73169]
[1680511402663,5.94594706,1812.6,1812.1,0.82776]
[1680511402860,6.57222808,1812.6,1812.1,0.82776]
[1680511403176,1.86002808,1812.6,1812.1,0.82776]
[1680511403345,1.85202808,1812.6,1812.1,0.82776]
[1680511403983,1.23374706,1812.6,1812.1,0.82776]
[1680511405080,1.215,1812.4,1812.1,0.27592]
[1680511405248,4.00276728,1812.4,1812.0,0.27592]
[1680511405442,0.40027673,1812.3,1811.9,5.28844]
[1680511405976,0.40027673,1812.3,1811.9,5.84034]
[1680511406842,4.00276728,1812.4,1811.9,5.84034]
[1680511406843,1.215,1812.4,1811.9,5.84034]
[1680511408348,4.00276728,1812.4,1811.9,5.84034]
[1680511408784,1.23374706,1812.4,1811.9,5.84034]
[1680511408980,4.23374706,1812.4,1811.9,5.84034]
[1680511410801,4.22998324,1812.4,1811.9,5.84034]
[1680511410977,4.22998324,1812.4,1811.9,7.11523057]
[1680511411181,1.22998324,1812.4,1811.9,7.11523057]
[1680511412505,1.22998324,1812.4,1811.9,2.11073057]
[1680511412821,4.01775052,1812.4,1811.9,0.28194]
[1680511412967,4.01775052,1812.4,1811.9,0.27594]
[1680511413175,8.81776728,1812.3,1811.9,0.83384]
[1680511413486,8.81976728,1812.3,1811.9,0.83384]
[1680511413701,0.88197673,1812.2,1811.9,0.83384]
[1680511414012,3.66974401,1812.2,1811.9,0.83384]
[1680511414218,6.032,1812.3,1811.9,0.83384]
[1680511414219,0.232,1812.3,1811.9,0.83384]
[1680511414518,1.21123618,1812.4,1811.9,0.82784]
[1680511414807,3.99900346,1812.4,1811.9,0.82784]
[1680511415022,3.99900346,1812.4,1811.9,1.02807957]
[1680511415915,1.21123618,1812.4,1811.9,1.02807957]
[1680511417885,0.002,1812.5,1811.9,6.82807957]
[1680511418084,3.0,1812.5,1811.9,6.83007957]
[1680511418284,3.0,1812.5,1812.1,1.93142]
[1680511418521,4.213,1812.6,1812.1,1.93742]
[1680511418683,8.9044,1812.6,1812.1,1.93142]
[1680511418888,8.9064,1812.6,1812.1,1.93742]
[1680511420313,11.69416728,1812.6,1812.1,1.93742]
[1680511420489,1.211,1812.4,1812.1,0.27591]
[1680511420673,3.99876728,1812.4,1812.1,0.82775]
[1680511420873,3.99876728,1812.4,1812.1,0.27591]
[1680511421080,5.11878568,1812.4,1812.1,0.27591]
[1680511421273,5.12078568,1812.4,1812.0,0.28193]
[1680511421715,10.03276728,1812.3,1811.9,0.006]
[1680511421921,14.66526728,1812.3,1811.9,0.27595]
[1680511422124,1.00327673,1812.2,1811.9,0.27595]
[1680511422295,3.79104401,1812.2,1811.9,0.27595]
[1680511422484,3.79104401,1812.2,1811.9,0.82785]
[1680511423522,3.79104401,1812.2,1811.9,0.83385]
[1680511423827,4.8625,1812.3,1811.9,0.83385]
[1680511424029,4.6305,1812.3,1811.9,0.82785]
[1680511424428,1.23574706,1812.4,1811.9,0.82785]
[1680511424634,7.02151434,1812.4,1811.9,0.82785]
[1680511424857,3.002,1812.4,1811.9,0.83385]
[1680511424994,4.5951,1812.5,1812.0,0.083385]
[1680511425329,4.5931,1812.5,1812.1,0.82774]
[1680511429899,1.211,1812.3,1812.0,0.28193]
[1680511431337,8.58776728,1812.2,1812.0,0.28193]
[1680511431522,8.29292673,1812.1,1811.8,0.006]
[1680511431726,9.80276728,1812.0,1811.6,0.006]
[1680511431920,0.23,1811.9,1811.6,0.006]
[1680511432144,4.23276728,1811.9,1811.6,0.006]
[1680511432341,5.25743371,1811.9,1811.6,0.006]
[1680511432515,5.25943371,1811.9,1811.6,0.006]
[1680511433057,1.203,1811.7,1811.6,0.006]
[1680511433371,4.18394728,1811.7,1811.6,0.006]
[1680511433667,0.00303748,1811.6,1811.5,0.106]
[1680511433866,14.9325123,1811.6,1811.5,0.106]
[1680511434009,14.3549323,1811.6,1811.5,0.1]
[1680511435143,5.51841796,1811.6,1811.5,0.1]
[1680511435345,4.21603748,1811.6,1811.5,0.1]
[1680511435545,1.21403748,1811.6,1811.5,0.1]
[1680511435861,1.21403748,1811.6,1811.5,0.106]
[1680511437614,0.00303748,1811.6,1811.5,0.38201]
[1680511438007,0.00303748,1811.6,1811.5,0.106]
[1680511438656,0.00283241,1811.6,1811.5,0.1]
[1680511438856,0.00083241,1811.6,1811.5,0.37601]
[1680511439063,0.00083241,1811.6,1811.5,0.1]
[1680511439246,0.00083241,1811.6,1811.5,0.37601]
[1680511440243,0.00083241,1811.6,1811.5,0.1]
[1680511440453,0.00083241,1811.6,1811.5,0.37601]
[1680511440644,0.00083241,1811.6,1811.5,0.1]
[1680511441546,9.80359969,1811.6,1811.5,0.1]
[1680511441874,14.20914966,1811.6,1811.5,0.1]
[1680511442058,14.21514966,1811.6,1811.5,0.1]
[1680511442873,14.02195966,1811.6,1811.5,0.1]
[1680511443234,14.21514966,1811.6,1811.5,0.1]
[1680511444354,8.41514966,1811.6,1811.5,0.1]
[1680511444573,8.22195966,1811.6,1811.5,0.1]
[1680511445252,8.41514966,1811.6,1811.5,0.1]
[1680511445765,8.22195966,1811.6,1811.5,0.1]
[1680511446578,7.24159969,1811.6,1811.5,0.1]
[1680511446749,7.43478969,1811.6,1811.5,0.1]
[1680511447477,13.62117969,1811.6,1811.5,0.1]
[1680511447942,14.82017969,1811.6,1811.5,0.1]
[1680511448672,29.22707969,1811.6,1811.5,0.09773737]
[1680511448837,32.32894037,1811.6,1811.5,0.09773737]
[1680511452689,32.89008104,1811.6,1811.5,0.09773737]
[1680511453653,32.50369104,1811.6,1811.5,0.09773737]
[1680511454400,32.66008104,1811.6,1811.5,0.09773737]
[1680511455451,20.17864036,1811.6,1811.5,0.10247387]
[1680511455791,0.56397308,1811.6,1811.5,0.10247387]
[1680511455979,0.56197308,1811.6,1811.5,0.10247387]
[1680511456188,1.77297308,1811.6,1811.5,0.09773737]
[1680511456580,4.56074036,1811.6,1811.5,0.09773737]
[1680511457296,13.85018223,1811.6,1811.5,0.09773737]
[1680511457494,15.25837223,1811.6,1811.5,0.09773737]
[1680511457692,15.48837223,1811.6,1811.5,0.09773737]
[1680511458385,15.87476223,1811.6,1811.5,0.09773737]
[1680511461074,15.48837223,1811.6,1811.5,0.09773737]
[1680511461269,15.87476223,1811.6,1811.5,0.09773737]
[1680511462014,0.13848838,1811.7,1811.5,0.09773737]
[1680511462172,0.002,1811.9,1811.6,1.203]
[1680511462378,1.61822559,1812.3,1811.7,2.03393]
[1680511462568,0.57606715,1812.4,1811.8,1.2081287]
[1680511462768,0.57606715,1812.4,1812.0,1.0]